fUST/lending_fUST_20251026
["ID","MTS","AMOUNT","RATE_DAILY","PERIOD"]
[392406874,1761439457301,160.0,0.000191,6]
[392406875,1761439475545,160.0,0.000191,6]
[392406876,1761439491943,161.0,0.000301,120]
[392406877,1761439505871,162.11361451,0.000301,120]
[392406878,1761439618961,10000.0,0.0003,120]
[392406879,1761439620618,299.60855143,0.00014602,2]
[392406880,1761439622452,342.06736329,0.00014602,2]
[392406881,1761439640802,2034.80968811,0.00015188,2]
[392406882,1761439703774,841.17354615,0.000152,2]
[392406883,1761439739755,4232.8,0.00019,6]
[392407045,1761439838450,-761.0,0.00015269,2]
[392407046,1761439838460,-300.0,0.00015269,2]
[392407047,1761439838469,-1200.0,0.00015269,2]
[392407048,1761439838478,-12913.4854539,0.0001527,2]
[392407049,1761439838489,-759.92,0.00015294,3]
[392407050,1761439838498,-379.96,0.00015294,3]
[392407051,1761439838507,-189.98,0.00015294,3]
[392407053,1761439838515,-569.96,0.00015294,3]
[392407054,1761439838524,-213.96859442,0.00015295,2]
[392407055,1761439838534,-151.0,0.00015295,2]
[392407056,1761439838543,-151.0,0.00015295,2]
[392407057,1761439838552,-219.0456936,0.00015295,2]
[392407058,1761439838561,-500.0,0.00015298,2]
[392407059,1761439838570,-500.0,0.00015298,2]
[392407060,1761439838579,-500.0,0.00015298,2]
[392407061,1761439838588,-500.0,0.00015298,2]
[392407062,1761439838598,-500.0,0.00015298,2]
[392407063,1761439838607,-500.0,0.00015298,2]
[392407064,1761439838616,-500.0,0.00015298,2]
[392407065,1761439838626,-500.0,0.00015298,2]
[392407066,1761439838636,-614.84571007,0.00015298,2]
[392407067,1761439838645,-500.0,0.00015298,2]
[392407068,1761439838655,-500.0,0.00015298,2]
[392407069,1761439838664,-454.71787194,0.00015298,2]
[392407070,1761439838673,-500.0,0.00015298,2]
[392407071,1761439838682,-500.0,0.00015298,2]
[392407072,1761439838692,-500.0,0.00015298,2]
[392407073,1761439838701,-500.0,0.00015298,2]
[392407074,1761439838711,-500.0,0.00015298,2]
[392407075,1761439838724,-500.0,0.00015298,2]
[392407076,1761439838733,-500.0,0.00015298,2]
[392407077,1761439838743,-500.0,0.00015298,2]
[392407078,1761439838753,-360.0,0.00015298,2]
[392407079,1761439838765,-500.0,0.00015298,2]
[392407080,1761439838774,-500.0,0.00015298,2]
[392407081,1761439838783,-478.01597071,0.00015298,2]
[392407082,1761439838793,-500.0,0.00015298,2]
[392407083,1761439838804,-161.0,0.00015298,2]
[392407084,1761439838814,-500.0,0.00015298,2]
[392407085,1761439838823,-500.0,0.00015298,2]
[392407086,1761439838832,-500.0,0.00015298,2]
[392407087,1761439838841,-500.0,0.00015298,2]
[392407088,1761439838850,-500.0,0.00015298,2]
[392407089,1761439838859,-377.26093986,0.00015303,2]
[392407090,1761439838869,-199.09106912,0.00015303,2]
[392407091,1761439838878,-344999.97,0.00015304,2]
[392407092,1761439838887,-1030746.13955368,0.00015319,2]
[392407093,1761439838899,-1902.8489678,0.00015319,2]
[392407100,1761439840701,-181163.54710961,0.00015319,2]
[392407178,1761439851371,379.5741512,0.00015227,2]
[392407179,1761439868065,999.0,0.0001439,2]
[392407180,1761439877640,4889.87737871,0.00015204,2]
[392407181,1761439877662,10000.01,0.00015204,2]
[392407182,1761439877683,10000.01,0.00015204,2]
[392407183,1761439877705,10000.01,0.00015204,2]
[392407184,1761439877727,10000.01,0.00015204,2]
[392407185,1761439877752,10000.01,0.00015204,2]
[392407186,1761439877776,10000.01,0.00015204,2]
[392407187,1761439877796,10000.01,0.00015204,2]
[392407188,1761439877818,10000.01,0.00015204,2]
[392407189,1761439877839,10000.01,0.00015204,2]
[392407190,1761439901100,-5000.0,0.00014901,2]
[392407191,1761439901214,-5000.0,0.00015052,2]
[392407192,1761439901364,-196.0,0.0001511,2]
[392407193,1761439901392,-196.0,0.00015148,2]
[392407194,1761439901421,-196.0,0.00015187,2]
[392407195,1761439907835,-2419.38863001,0.00015204,2]
[392407196,1761439907956,-10000.01,0.00015204,2]
[392407197,1761439928186,-300.0,0.00015203,2]
[392407198,1761439928225,-9400.01,0.00015204,2]
[392407199,1761439928299,-10000.01,0.00015204,2]
[392407200,1761439928423,-10000.01,0.00015204,2]
[392407201,1761439928529,-10000.01,0.00015204,2]
[392407202,1761439928634,-10000.01,0.00015204,2]
[392407203,1761439928762,-10000.01,0.00015204,2]
[392407204,1761439928874,-10000.01,0.00015204,2]
[392407205,1761439929010,-10000.01,0.00015204,2]
[392407206,1761439937350,-300.0,0.000152,2]
[392407207,1761439937412,-9400.01,0.00015204,2]
[392407208,1761439937572,-10000.01,0.00015204,2]
[392407209,1761439955411,-300.0,0.000152,2]
[392407210,1761439955456,-9400.01,0.00015204,2]
[392407211,1761439955497,-10000.01,0.00015204,2]
[392407212,1761439955675,-10000.01,0.00015204,2]
[392407213,1761439955838,-10000.01,0.00015204,2]
[392407214,1761439955963,-10000.01,0.00015204,2]
[392407215,1761439964404,-179.90717506,0.00014385,2]
[392407216,1761439965998,-272.52659359,0.00014385,2]
[392407217,1761439967120,-747.56623135,0.00014385,2]
[392407218,1761439967154,-8504.8775373,0.00014386,2]
[392407219,1761439969241,-187.96200002,0.00014386,2]
[392407220,1761439970713,-168.0,0.00014242,2]
[392407221,1761439972765,-135.45128676,0.00014242,2]
[392407222,1761439972784,-59.11322277,0.00014386,2]
[392407223,1761439975602,-196.01373998,0.00014386,2]
[392407224,1761439978817,-234.8013381,0.00014386,2]
[392407225,1761439979632,-10000.01,0.00014386,2]
[392407226,1761439979894,-10000.01,0.00014386,2]
[392407227,1761439980049,-10000.01,0.00014386,2]
[392407228,1761439980804,-155.10471268,0.00014386,2]
[392407229,1761439983046,-300.0,0.00014386,2]
[392407230,1761439985644,-256.37452581,0.00014386,2]
[392407231,1761439990031,-169.46769597,0.00014386,2]
[392407232,1761439991835,-4923.22695713,0.00014386,2]
[392407233,1761439991862,-153.55608574,0.00014386,2]
[392407234,1761439997833,-300.0,0.00014989,2]
[392407235,1761439997868,-9400.01,0.0001499,2]
[392407236,1761439997972,-10000.01,0.0001499,2]
[392407237,1761439998107,-10000.01,0.0001499,2]
[392407238,1761439998206,-10000.01,0.0001499,2]
[392407239,1761439998301,-10000.01,0.0001499,2]
[392407240,1761439998435,-10000.01,0.0001499,2]
[392407241,1761439998545,-10000.01,0.0001499,2]
[392407242,1761439998671,-10000.01,0.0001499,2]
[392407243,1761439998785,-10000.01,0.0001499,2]
[392407244,1761439998913,-10000.01,0.0001499,2]
[392407245,1761440010243,-169.46769597,0.00014839,2]
[392407246,1761440022188,-599.9,0.0001499,2]
[392407247,1761440037300,-736.02685289,0.00015104,2]
[392407248,1761440046928,188.65046957,0.00014602,2]
[392407249,1761440049449,339.57084523,0.00014602,2]
[392407250,1761440051503,603.68150264,0.00014602,2]
[392407251,1761440053978,942.30909552,0.00014602,2]
[392407252,1761440055472,-196.0,0.0001511,2]
[392407253,1761440056625,300.0,0.000148,2]
[392407254,1761440067638,300.0,0.000148,2]
[392407255,1761440078693,300.0,0.000148,2]
[392407256,1761440088995,300.0,0.000148,2]
[392407257,1761440099507,300.0,0.000148,2]
[392407260,1761440110242,300.0,0.000148,2]
[392407261,1761440127429,300.0,0.000148,2]
[392407262,1761440136278,196.0,0.0001511,2]
[392407263,1761440195623,800.0,0.00014734,2]
[392407264,1761440195728,800.0,0.00014782,2]
[392407265,1761440241363,10000.01,0.00015104,2]
[392407266,1761440241386,1189.70002147,0.00015104,2]
[392407267,1761440269228,644.02349627,0.00015102,2]
[392407273,1761440324385,-367.68933407,0.00015185,2]
[392407274,1761440327872,-327.69478422,0.00015185,2]
[392407275,1761440356719,169.43549047,0.000151,2]
[392407276,1761440366239,-29.61588171,0.00015185,2]
[392407277,1761440366266,-438.58956128,0.000152,2]
[392407278,1761440366293,-205.85647838,0.000152,2]
[392407279,1761440366321,-205.85647838,0.000152,2]
[392407280,1761440366348,-205.85647838,0.000152,2]
[392407281,1761440366377,-300.0,0.000152,2]
[392407282,1761440381544,-199.90437871,0.00015201,2]
[392407283,1761440381570,-372.85217627,0.00015201,2]
[392407284,1761440381599,-500.0,0.00015201,2]
[392407285,1761440381625,-500.0,0.00015201,2]
[392407286,1761440381652,-500.0,0.00015201,2]
[392407287,1761440381875,-500.0,0.00015201,2]
[392407288,1761440381907,-500.0,0.00015201,2]
[392407289,1761440381936,-387.56664507,0.00015201,2]
[392407290,1761440381969,-500.0,0.00015201,2]
[392407291,1761440381996,-500.0,0.00015201,2]
[392407292,1761440382028,-500.0,0.00015201,2]
[392407293,1761440382315,-500.0,0.00015201,2]
[392407294,1761440382344,-500.0,0.00015201,2]
[392407295,1761440382372,-500.0,0.00015201,2]
[392407296,1761440382400,-500.0,0.00015201,2]
[392407297,1761440382427,-500.0,0.00015201,2]
[392407298,1761440382455,-500.0,0.00015201,2]
[392407299,1761440382483,-500.0,0.00015201,2]
[392407300,1761440382510,-500.0,0.00015201,2]
[392407301,1761440382537,-500.0,0.00015201,2]
[392407302,1761440382564,-500.0,0.00015201,2]
[392407303,1761440382624,-500.0,0.00015201,2]
[392407304,1761440382653,-500.0,0.00015201,2]
[392407305,1761440382683,-500.0,0.00015201,2]
[392407306,1761440382712,-371.84205058,0.00015201,2]
[392407307,1761440382740,-500.0,0.00015201,2]
[392407308,1761440382769,-500.0,0.00015201,2]
[392407309,1761440382796,-500.0,0.00015201,2]
[392407310,1761440382823,-310.96032311,0.00015201,2]
[392407311,1761440382852,-500.0,0.00015201,2]
[392407312,1761440382882,-500.0,0.00015201,2]
[392407313,1761440382912,-134.40525262,0.00015201,2]
[392407314,1761440383049,-365.59474738,0.00015201,2]
[392407315,1761440383079,-500.0,0.00015201,2]
[392407316,1761440383111,-500.0,0.00015201,2]
[392407317,1761440383144,-500.0,0.00015201,2]
[392407318,1761440383177,-500.0,0.00015201,2]
[392407319,1761440383208,-500.0,0.00015201,2]
[392407320,1761440383237,-500.0,0.00015201,2]
[392407321,1761440383265,-500.0,0.00015201,2]
[392407322,1761440383293,-500.0,0.00015201,2]
[392407323,1761440383328,-500.0,0.00015201,2]
[392407324,1761440383485,-500.0,0.00015201,2]
[392407325,1761440383514,-500.0,0.00015201,2]
[392407326,1761440383542,-500.0,0.00015201,2]
[392407327,1761440383575,-500.0,0.00015201,2]
[392407328,1761440383606,-500.0,0.00015201,2]
[392407329,1761440383634,-500.0,0.00015201,2]
[392407330,1761440383662,-500.0,0.00015201,2]
[392407331,1761440383690,-500.0,0.00015201,2]
[392407332,1761440383717,-500.0,0.00015201,2]
[392407333,1761440383745,-500.0,0.00015201,2]
[392407334,1761440383803,-500.0,0.00015201,2]
[392407335,1761440383830,-500.0,0.00015201,2]
[392407336,1761440383858,-500.0,0.00015201,2]
[392407337,1761440383886,-500.0,0.00015201,2]
[392407338,1761440383915,-500.0,0.00015201,2]
[392407339,1761440383942,-642.26630903,0.00015201,2]
[392407340,1761440383970,-500.0,0.00015201,2]
[392407341,1761440383998,-500.0,0.00015201,2]
[392407342,1761440384026,-500.0,0.00015201,2]
[392407343,1761440384059,-215.47738194,0.00015201,2]
[392407344,1761440384512,-284.52261806,0.00015201,2]
[392407345,1761440384540,-500.0,0.00015201,2]
[392407346,1761440384567,-500.0,0.00015201,2]
[392407347,1761440384594,-500.0,0.00015201,2]
[392407348,1761440384621,-500.0,0.00015201,2]
[392407349,1761440384649,-500.0,0.00015201,2]
[392407350,1761440384676,-500.0,0.00015201,2]
[392407351,1761440384704,-500.0,0.00015201,2]
[392407352,1761440384732,-500.0,0.00015201,2]
[392407353,1761440384761,-500.0,0.00015201,2]
[392407354,1761440384906,-500.0,0.00015201,2]
[392407355,1761440384939,-500.0,0.00015201,2]
[392407356,1761440384966,-500.0,0.00015201,2]
[392407357,1761440384994,-500.0,0.00015201,2]
[392407358,1761440385024,-500.0,0.00015201,2]
[392407359,1761440385058,-500.0,0.00015201,2]
[392407360,1761440385089,-500.0,0.00015201,2]
[392407361,1761440385119,-500.0,0.00015201,2]
[392407362,1761440385148,-500.0,0.00015201,2]
[392407363,1761440385176,-500.0,0.00015201,2]
[392407364,1761440385485,-500.0,0.00015201,2]
[392407365,1761440385512,-500.0,0.00015201,2]
[392407366,1761440385539,-500.0,0.00015201,2]
[392407367,1761440385567,-500.0,0.00015201,2]
[392407368,1761440385594,-349.32605829,0.00015201,2]
[392407369,1761440385622,-500.0,0.00015201,2]
[392407370,1761440385649,-500.0,0.00015201,2]
[392407371,1761440385675,-500.0,0.00015201,2]
[392407372,1761440385702,-500.0,0.00015201,2]
[392407373,1761440385728,-500.0,0.00015201,2]
[392407374,1761440385914,-500.0,0.00015201,2]
[392407375,1761440385946,-500.0,0.00015201,2]
[392407376,1761440385976,-500.0,0.00015201,2]
[392407377,1761440386137,-500.0,0.00015201,2]
[392407378,1761440386168,-500.0,0.00015201,2]
[392407379,1761440386199,-500.0,0.00015201,2]
[392407380,1761440386228,-589.60200715,0.00015201,2]
[392407381,1761440386257,-500.0,0.00015201,2]
[392407382,1761440386285,-500.0,0.00015201,2]
[392407383,1761440386313,-320.8059857,0.00015201,2]
[392407384,1761440388549,-179.1940143,0.00015201,2]
[392407385,1761440388577,-556.00308876,0.00015201,2]
[392407386,1761440388605,-500.0,0.00015201,2]
[392407387,1761440388631,-556.00308876,0.00015201,2]
[392407388,1761440388658,-500.0,0.00015201,2]
[392407389,1761440388685,-556.00308876,0.00015201,2]
[392407390,1761440388712,-500.0,0.00015201,2]
[392407391,1761440388740,-556.00308876,0.00015201,2]
[392407392,1761440388769,-500.0,0.00015201,2]
[392407393,1761440388801,-556.00308876,0.00015201,2]
[392407394,1761440388842,-500.0,0.00015201,2]
[392407395,1761440388872,-556.00308876,0.00015201,2]
[392407396,1761440388903,-500.0,0.00015201,2]
[392407397,1761440388937,-556.00308876,0.00015201,2]
[392407398,1761440388966,-500.0,0.00015201,2]
[392407399,1761440388995,-556.00308876,0.00015201,2]
[392407400,1761440389025,-500.0,0.00015201,2]
[392407401,1761440389057,-556.00308876,0.00015201,2]
[392407402,1761440389087,-556.00308876,0.00015201,2]
[392407403,1761440389129,-556.00308876,0.00015201,2]
[392407404,1761440389157,-500.0,0.00015201,2]
[392407405,1761440389185,-556.00308876,0.00015201,2]
[392407406,1761440389212,-556.00308876,0.00015201,2]
[392407407,1761440389242,-266.421463,0.00015201,2]
[392407408,1761440389414,-556.00308876,0.00015201,2]
[392407409,1761440389443,-556.00308876,0.00015201,2]
[392407410,1761440389471,-500.0,0.00015201,2]
[392407411,1761440389503,-556.00308876,0.00015201,2]
[392407412,1761440389534,-295.13000888,0.00015201,2]
[392407413,1761440394145,-204.86999112,0.00015201,2]
[392407414,1761440394175,-556.00308876,0.00015201,2]
[392407415,1761440394204,-556.00308876,0.00015201,2]
[392407416,1761440394233,-500.0,0.00015201,2]
[392407417,1761440394262,-556.00308876,0.00015201,2]
[392407418,1761440394290,-556.00308876,0.00015201,2]
[392407419,1761440394320,-556.00308876,0.00015201,2]
[392407420,1761440394348,-556.00308876,0.00015201,2]
[392407421,1761440394376,-556.00308876,0.00015201,2]
[392407422,1761440394406,-306.22677512,0.00015201,2]
[392407423,1761440394695,-193.77322488,0.00015201,2]
[392407424,1761440394725,-556.00308876,0.00015201,2]
[392407425,1761440394755,-556.00308876,0.00015201,2]
[392407426,1761440394784,-556.00308876,0.00015201,2]
[392407427,1761440394811,-556.00308876,0.00015201,2]
[392407428,1761440394841,-556.00308876,0.00015201,2]
[392407429,1761440394870,-556.00308876,0.00015201,2]
[392407430,1761440394904,-556.00308876,0.00015201,2]
[392407431,1761440394936,-556.00308876,0.00015201,2]
[392407432,1761440394967,-160.41104132,0.00015201,2]
[392407433,1761440395091,-395.59204744,0.00015201,2]
[392407434,1761440395122,-556.00308876,0.00015201,2]
[392407435,1761440395153,-556.00308876,0.00015201,2]
[392407436,1761440395183,-556.00308876,0.00015201,2]
[392407437,1761440395215,-556.00308876,0.00015201,2]
[392407438,1761440395246,-556.00308876,0.00015201,2]
[392407439,1761440395278,-556.00308876,0.00015201,2]
[392407440,1761440395309,-556.00308876,0.00015201,2]
[392407441,1761440395337,-556.00308876,0.00015201,2]
[392407442,1761440399671,-556.00308876,0.00015201,2]
[392407443,1761440399700,-556.00308876,0.00015201,2]
[392407444,1761440399727,-596.9649368,0.00015201,2]
[392407445,1761440399754,-596.9649368,0.00015201,2]
[392407446,1761440399781,-596.9649368,0.00015201,2]
[392407447,1761440399809,-596.9649368,0.00015201,2]
[392407448,1761440399836,-596.9649368,0.00015201,2]
[392407449,1761440399863,-596.9649368,0.00015201,2]
[392407450,1761440399890,-15.45346656,0.00015201,2]
[392407451,1761440406921,-2034.80968811,0.00015096,2]
[392407452,1761440406949,-300.0,0.000152,2]
[392407453,1761440406978,-231.0,0.000152,2]
[392407454,1761440407006,-300.0,0.000152,2]
[392407455,1761440407036,-1200.0,0.000152,2]
[392407456,1761440407073,-581.51147024,0.00015201,2]
[392407457,1761440407104,-108.40274652,0.00015201,2]
[392407458,1761440407331,-488.56219026,0.00015201,2]
[392407459,1761440407858,-5700.49748663,0.00015201,2]
[392407460,1761440407886,-10000.01,0.00015201,2]
[392407461,1761440412899,-3932.191968,0.00014358,2]
[392407462,1761440412928,-151.0,0.00015185,2]
[392407463,1761440412957,-151.0,0.00015185,2]
[392407464,1761440412986,-213.96859442,0.00015195,2]
[392407465,1761440413116,-1103.68887516,0.00015201,2]
[392407466,1761440413174,-10000.01,0.00015201,2]
[392407467,1761440421409,-10000.01,0.00015201,2]
[392407468,1761440421607,-10000.01,0.00015201,2]
[392407469,1761440421662,-3195.77363821,0.00015201,2]
[392407470,1761440483835,3608.46272358,0.00014254,2]
[392407471,1761440483856,4897.06975442,0.00014254,2]
[392407472,1761440516434,166.722253,0.00015068,2]
[392407473,1761440554559,563.52055921,0.00015103,2]
[392407474,1761440572648,168.0,0.0001495,2]
[392407475,1761440574637,-164.77441272,0.00015137,2]
[392407476,1761440582229,8951.7680172,0.00015124,2]
[392407477,1761440656839,300.0,0.000151,2]
[392407478,1761440667626,300.0,0.000151,2]
[392407479,1761440677981,300.0,0.000151,2]
[392407480,1761440689625,148.2419828,0.000151,2]
[392407481,1761440689647,151.7580172,0.000151,2]
[392407482,1761440700434,300.0,0.000151,2]
[392407483,1761440712954,300.0,0.000151,2]
[392407484,1761440724200,300.0,0.000151,2]
[392407485,1761440777613,500.0,0.00030137,120]
[392407486,1761440781017,1426.07,0.00030137,120]
[392407488,1761440792754,500.0,0.00030137,120]
[392407489,1761440801086,168.0,0.00014997,2]
[392407490,1761440802360,200.0,0.00030137,120]
[392407491,1761440804649,-3.22558728,0.00015137,2]
[392407492,1761440804676,-443.28,0.00015194,3]
[392407493,1761440804703,-221.64,0.00015194,3]
[392407494,1761440804729,-664.96,0.00015194,3]
[392407495,1761440804756,-213.96859442,0.00015195,2]
[392407496,1761440804783,-1200.0,0.00015199,2]
[392407497,1761440804809,-300.0,0.00015199,2]
[392407498,1761440804835,-548.35789553,0.000152,2]
[392407499,1761440804862,-500.0,0.000152,2]
[392407500,1761440804888,-300.0,0.000152,2]
[392407501,1761440805305,-196.85999103,0.000152,2]
[392407502,1761440806205,168.0,0.00015021,2]
[392407503,1761440807365,-182.77241854,0.000152,2]
[392407504,1761440809371,200.0,0.00030137,120]
[392407505,1761440810701,-120.36759043,0.000152,2]
[392407506,1761440810722,-71.2940384,0.000152,2]
[392407507,1761440813875,-382.03652048,0.000152,2]
[392407508,1761440822314,300.0,0.00015199,2]
[392407509,1761440822650,220.0,0.00030137,120]
[392407510,1761440835050,493.0804893,0.00015103,2]
[392407511,1761440859001,248.06535624,0.00015199,2]
[392407512,1761440859023,951.93464376,0.00015199,2]
[392407513,1761440882339,300.0,0.00015199,2]
[392407514,1761440882818,-46.66944112,0.000152,2]
[392407515,1761440882846,-500.0,0.000152,2]
[392407516,1761440882874,-152.42689451,0.000152,2]
[392407517,1761440882902,-500.0,0.000152,2]
[392407518,1761440882936,-500.0,0.000152,2]
[392407519,1761440882965,-456.4828366,0.000152,2]
[392407520,1761440882993,-500.0,0.000152,2]
[392407521,1761440883022,-500.0,0.000152,2]
[392407522,1761440883051,-500.0,0.000152,2]
[392407523,1761440883079,-500.0,0.000152,2]
[392407524,1761440883109,-500.0,0.000152,2]
[392407525,1761440883138,-129.89145483,0.000152,2]
[392407526,1761440883507,-429.06874588,0.000152,2]
[392407527,1761440883537,-500.0,0.000152,2]
[392407528,1761440883566,-500.0,0.000152,2]
[392407529,1761440883593,-500.0,0.000152,2]
[392407530,1761440883622,-500.0,0.000152,2]
[392407531,1761440883650,-500.0,0.000152,2]
[392407532,1761440883678,-500.0,0.000152,2]
[392407533,1761440883707,-500.0,0.000152,2]
[392407534,1761440883740,-500.0,0.000152,2]
[392407535,1761440883769,-500.0,0.000152,2]
[392407536,1761440894792,-500.0,0.000152,2]
[392407537,1761440894823,-500.0,0.000152,2]
[392407538,1761440894850,-500.0,0.000152,2]
[392407539,1761440894877,-263.60360509,0.000152,2]
[392407540,1761440894903,-301.51181132,0.000152,2]
[392407541,1761440894931,-500.0,0.000152,2]
[392407542,1761440894957,-375.52969373,0.000152,2]
[392407543,1761440894990,-500.0,0.000152,2]
[392407544,1761440895017,-500.0,0.000152,2]
[392407545,1761440895044,-571.2940384,0.000152,2]
[392407546,1761440895071,-303.45128676,0.000152,2]
[392407547,1761440895097,-142.77725394,0.000152,2]
[392407548,1761440895282,-83.67462152,0.000152,2]
[392407549,1761440895311,-479.93165076,0.000152,2]
[392407550,1761440901109,-2034.80968811,0.00014838,2]
[392407597,1761441031843,-196.0,0.0001511,2]
[392407600,1761441031854,-580.35496422,0.00015124,2]
[392407609,1761441031931,-643.68441871,0.00015124,2]
[392407957,1761441037592,-4560.3757086,0.00015124,2]
[392407959,1761441037604,-1376.99932223,0.00015124,2]
[392407961,1761441037614,-196.0,0.00015153,2]
[392407963,1761441037623,-213.96859442,0.00015195,2]
[392407965,1761441037632,-196.0,0.00015197,2]
[392407967,1761441037642,-1200.0,0.000152,2]
[392407968,1761441037652,-343.64601407,0.000152,2]
[392407970,1761441037661,-500.0,0.00015201,2]
[392407972,1761441037671,-300.0,0.00015201,2]
[392407975,1761441037684,-500.0,0.00015202,2]
[392407977,1761441037694,-428.41258164,0.00015202,2]
[392408166,1761441040028,-3e-08,0.00015202,2]
[392408299,1761441042897,-71.58741833,0.00015202,2]
[392408300,1761441042907,-500.0,0.00015203,2]
[392408301,1761441042917,-500.0,0.00015203,2]
[392408302,1761441042927,-500.0,0.00015203,2]
[392408303,1761441042937,-500.0,0.00015203,2]
[392408304,1761441042948,-456.35398593,0.00015203,2]
[392408306,1761441042958,-1000.10001,0.00015203,2]
[392408308,1761441042967,-335.95215554,0.00015203,2]
[392408309,1761441042977,-158.51631282,0.00015203,2]
[392408310,1761441042987,-500.0,0.00015203,2]
[392408311,1761441042996,-173.21780008,0.00015203,2]
[392408312,1761441043006,-362.62262279,0.00015203,2]
[392408313,1761441043015,-263.94774375,0.00015203,2]
[392408314,1761441043024,-278.75321276,0.00015203,2]
[392408315,1761441043034,-3012.68910998,0.00015204,2]
[392408319,1761441045812,-7834.5191881,0.00015204,2]
[392408320,1761441045823,-10306.35313181,0.00015204,2]
[392408321,1761441067756,1234.947153,0.00014298,2]
[392408322,1761441117307,-431.44542819,0.00015104,2]
[392408323,1761441117335,-196.0,0.0001511,2]
[392408324,1761441117362,-196.0,0.00015151,2]
[392408325,1761441117390,-196.0,0.00015192,2]
[392408326,1761441117420,-500.0,0.000152,2]
[392408327,1761441117447,-300.0,0.00015203,2]
[392408328,1761441117486,-227.94913904,0.00015203,2]
[392408329,1761441118225,-1195.42015039,0.00015204,2]
[392408330,1761441123348,-300.0,0.00015203,2]
[392408331,1761441123381,-9400.01,0.00015204,2]
[392408332,1761441123430,-10000.01,0.00015204,2]
[392408333,1761441232046,500.0,0.00014619,2]
[392408334,1761441236200,-196.0,0.0001511,2]
[392408335,1761441236771,500.0,0.00014097,2]
[392408336,1761441239609,9108.01,0.00015104,2]
[392408337,1761441239632,10000.01,0.00015104,2]
[392408338,1761441239653,10000.01,0.00015104,2]
[392408339,1761441239674,10000.01,0.00015104,2]
[392408340,1761441239695,10000.01,0.00015104,2]
[392408341,1761441239715,10000.01,0.00015104,2]
[392408342,1761441239737,10000.01,0.00015104,2]
[392408343,1761441239758,10000.01,0.00015104,2]
[392408344,1761441239778,10000.01,0.00015104,2]
[392408345,1761441239800,10000.01,0.00015104,2]
[392408346,1761441263205,-300.0,0.00015103,2]
[392408347,1761441266296,-4270.878469,0.00015055,2]
[392408348,1761441266411,-1458.253062,0.00015055,2]
[392408349,1761441272290,-7837.756938,0.00015104,2]
[392408350,1761441272408,-10000.01,0.00015104,2]
[392408351,1761441272541,-10000.01,0.00015104,2]
[392408352,1761441272655,-10000.01,0.00015104,2]
[392408353,1761441272783,-10000.01,0.00015104,2]
[392408354,1761441272920,-10000.01,0.00015104,2]
[392408355,1761441273042,-10000.01,0.00015104,2]
[392408356,1761441273172,-10000.01,0.00015104,2]
[392408357,1761441278249,-235.16650887,0.00015103,2]
[392408358,1761441278277,-500.0,0.00015103,2]
[392408359,1761441278304,-500.0,0.00015103,2]
[392408360,1761441278331,-500.0,0.00015103,2]
[392408361,1761441278358,-500.0,0.00015103,2]
[392408362,1761441278384,-500.0,0.00015103,2]
[392408363,1761441278414,-416.13420126,0.00015103,2]
[392408364,1761441278442,-500.0,0.00015103,2]